[Event "Chessable Masters - Torneo preliminare"]
[White "Meier, Georg"]
[Black "Mikaelyan, Arman"]
[WhiteFideId "4675789"]
[BlackFideId "13304852"]
[WhiteElo "2624"]
[BlackElo "2456"]
[Result "1-0"]
[Round "4"]
[TimeControl "600+2"]
[Date "2023.03.13"]
[WhiteClock "0:02:11"]
[BlackClock "0:00:04"]

1. Nf3 {[%clk 0:10:01]}  Nf6 {[%clk 0:09:48]} 2. g3 {[%clk 0:10:03]}  g6 {[%clk 0:09:38]} 3. Bg2 {[%clk 0:10:04]}  Bg7 {[%clk 0:09:38]} 4. O-O {[%clk 0:10:05]}  O-O {[%clk 0:09:34]} 5. d4 {[%clk 0:10:07]}  d5 {[%clk 0:08:47]} 6. c4 {[%clk 0:10:07]}  dxc4 {[%clk 0:08:34]} 7. Na3 {[%clk 0:10:08]}  c5 {[%clk 0:08:26]} 8. dxc5 {[%clk 0:10:05]}  c3 {[%clk 0:06:50]} 9. Nb5 {[%clk 0:10:05]}  Na6 {[%clk 0:06:28]} 10. Nxc3 {[%clk 0:10:03]}  Nxc5 {[%clk 0:06:26]} 11. Be3 {[%clk 0:10:05]}  Nfe4 {[%clk 0:06:10]} 12. Nxe4 {[%clk 0:10:06]}  Nxe4 {[%clk 0:06:12]} 13. Bd4 {[%clk 0:10:07]}  Bxd4 {[%clk 0:05:04]} 14. Qxd4 {[%clk 0:10:09]}  Qxd4 {[%clk 0:05:02]} 15. Nxd4 {[%clk 0:10:11]}  Nd6 {[%clk 0:05:04]} 16. Rfc1 {[%clk 0:10:12]}  Bg4 {[%clk 0:03:58]} 17. f3 {[%clk 0:08:20]}  Bd7 {[%clk 0:03:57]} 18. Rc7 {[%clk 0:08:17]}  Rfd8 {[%clk 0:03:55]} 19. f4 {[%clk 0:08:18]}  Rac8 {[%clk 0:03:37]} 20. Rac1 {[%clk 0:08:16]}  Ne8 {[%clk 0:02:35]} 21. Rxc8 {[%clk 0:08:09]}  Rxc8 {[%clk 0:02:31]} 22. Rxc8 {[%clk 0:08:07]}  Bxc8 {[%clk 0:02:33]} 23. Nb5 {[%clk 0:04:57]}  a5 {[%clk 0:02:00]} 24. Na7 {[%clk 0:04:57]}  Be6 {[%clk 0:01:47]} 25. Bxb7 {[%clk 0:04:57]}  Bxa2 {[%clk 0:00:56]} 26. Nc6 {[%clk 0:04:53]}  a4 {[%clk 0:00:57]} 27. Nxe7+ {[%clk 0:04:49]}  Kf8 {[%clk 0:00:59]} 28. Bd5 {[%clk 0:04:43]}  Bb1 {[%clk 0:00:32]} 29. Nc8 {[%clk 0:04:29]}  Nc7 {[%clk 0:00:28]} 30. Bc6 {[%clk 0:04:28]}  Bc2 {[%clk 0:00:27]} 31. Nb6 {[%clk 0:04:28]}  Ke7 {[%clk 0:00:25]} 32. Bxa4 {[%clk 0:04:16]}  Bb1 {[%clk 0:00:26]} 33. Bb3 {[%clk 0:03:49]}  Nb5 {[%clk 0:00:24]} 34. Nd5+ {[%clk 0:03:49]}  Kd6 {[%clk 0:00:23]} 35. Nc3 {[%clk 0:03:51]}  Nxc3 {[%clk 0:00:21]} 36. bxc3 {[%clk 0:03:51]}  f6 {[%clk 0:00:23]} 37. Kf2 {[%clk 0:03:43]}  Kc5 {[%clk 0:00:22]} 38. Kf3 {[%clk 0:03:33]}  h6 {[%clk 0:00:22]} 39. e4 {[%clk 0:02:33]}  g5 {[%clk 0:00:16]} 40. Bd5 {[%clk 0:02:26]}  Kd6 {[%clk 0:00:16]} 41. Kg4 {[%clk 0:02:18]}  Bd3 {[%clk 0:00:13]} 42. Kf5 {[%clk 0:02:12]}  Ke7 {[%clk 0:00:12]} 43. Kg6 {[%clk 0:02:13]}  gxf4 {[%clk 0:00:05]} 44. gxf4 {[%clk 0:02:13]}  Be2 {[%clk 0:00:04]} 45. Kxh6 {[%clk 0:02:11]} 1-0


[Site "Internet"]

[Event "Chessable Masters - Torneo preliminare"]
[White "Cardoso Cardoso, Jose Gabriel"]
[Black "Sarana, Alexey"]
[WhiteFideId "4430492"]
[BlackFideId "24133795"]
[WhiteElo "2425"]
[BlackElo "2643"]
[Result "0-1"]
[Round "4"]
[TimeControl "600+2"]
[Date "2023.03.13"]
[WhiteClock "0:00:03"]
[BlackClock "0:05:30"]

1. d4 {[%clk 0:10:01]}  Nf6 {[%clk 0:10:01]} 2. c4 {[%clk 0:10:01]}  e6 {[%clk 0:10:02]} 3. Nc3 {[%clk 0:10:02]}  Bb4 {[%clk 0:10:01]} 4. e3 {[%clk 0:10:02]}  d5 {[%clk 0:10:01]} 5. Nf3 {[%clk 0:09:57]}  O-O {[%clk 0:10:02]} 6. Bd2 {[%clk 0:09:56]}  b6 {[%clk 0:10:01]} 7. cxd5 {[%clk 0:09:54]}  exd5 {[%clk 0:10:03]} 8. Rc1 {[%clk 0:09:54]}  Bb7 {[%clk 0:10:02]} 9. Bd3 {[%clk 0:09:48]}  Nbd7 {[%clk 0:10:03]} 10. Nb5 {[%clk 0:08:35]}  Bxd2+ {[%clk 0:10:03]} 11. Qxd2 {[%clk 0:08:28]}  c5 {[%clk 0:10:04]} 12. b3 {[%clk 0:08:03]}  Ne4 {[%clk 0:09:47]} 13. Qe2 {[%clk 0:08:02]}  Ndf6 {[%clk 0:09:46]} 14. O-O {[%clk 0:07:59]}  Qe7 {[%clk 0:09:47]} 15. Ne5 {[%clk 0:07:53]}  Rfc8 {[%clk 0:09:27]} 16. f3 {[%clk 0:07:40]}  Nd6 {[%clk 0:09:24]} 17. Nxd6 {[%clk 0:07:39]}  Qxd6 {[%clk 0:09:26]} 18. Qd2 {[%clk 0:07:29]}  Rc7 {[%clk 0:09:26]} 19. Rc2 {[%clk 0:07:25]}  Rac8 {[%clk 0:09:25]} 20. Rfc1 {[%clk 0:07:26]}  g6 {[%clk 0:09:26]} 21. Bf1 {[%clk 0:07:04]}  Kg7 {[%clk 0:09:22]} 22. Qf2 {[%clk 0:06:20]}  Ng8 {[%clk 0:09:19]} 23. Qd2 {[%clk 0:05:30]}  Ne7 {[%clk 0:09:18]} 24. Bd3 {[%clk 0:05:16]}  h5 {[%clk 0:09:08]} 25. f4 {[%clk 0:05:04]}  Rd8 {[%clk 0:08:21]} 26. Qf2 {[%clk 0:04:43]}  Bc8 {[%clk 0:08:21]} 27. Rc3 {[%clk 0:04:10]}  Be6 {[%clk 0:08:19]} 28. Qb2 {[%clk 0:03:56]}  f6 {[%clk 0:08:16]} 29. Nxg6 {[%clk 0:03:39]}  Nxg6 {[%clk 0:08:16]} 30. f5 {[%clk 0:03:40]}  Bxf5 {[%clk 0:07:57]} 31. Bxf5 {[%clk 0:03:40]}  Ne7 {[%clk 0:07:59]} 32. Qf2 {[%clk 0:03:27]}  Rc6 {[%clk 0:07:52]} 33. Bb1 {[%clk 0:02:45]}  Rdc8 {[%clk 0:06:37]} 34. Qc2 {[%clk 0:02:46]}  f5 {[%clk 0:06:38]} 35. Qd2 {[%clk 0:02:36]}  Qf6 {[%clk 0:06:36]} 36. dxc5 {[%clk 0:01:38]}  Rxc5 {[%clk 0:06:38]} 37. Rxc5 {[%clk 0:01:37]}  Rxc5 {[%clk 0:06:40]} 38. Rf1 {[%clk 0:01:36]}  Rc6 {[%clk 0:06:11]} 39. Qe2 {[%clk 0:01:28]}  Qg5 {[%clk 0:06:10]} 40. Qb2+ {[%clk 0:01:12]}  Qf6 {[%clk 0:06:11]} 41. Qe2 {[%clk 0:01:12]}  Qe5 {[%clk 0:06:12]} 42. Qf2 {[%clk 0:00:50]}  Re6 {[%clk 0:06:00]} 43. h4 {[%clk 0:00:23]}  Kg6 {[%clk 0:05:51]} 44. Kh1 {[%clk 0:00:20]}  a5 {[%clk 0:05:50]} 45. Qf3 {[%clk 0:00:17]}  Kh6 {[%clk 0:05:33]} 46. Re1 {[%clk 0:00:16]}  Rg6 {[%clk 0:05:34]} 47. Qf4+ {[%clk 0:00:16]}  Qxf4 {[%clk 0:05:32]} 48. exf4 {[%clk 0:00:18]}  Nc6 {[%clk 0:05:33]} 49. Bxf5 {[%clk 0:00:18]}  Rf6 {[%clk 0:05:35]} 50. Bb1 {[%clk 0:00:13]}  d4 {[%clk 0:05:30]} 51. g3 {[%clk 0:00:11]}  Rd6 {[%clk 0:05:31]} 52. Kg2 {[%clk 0:00:09]}  Kg7 {[%clk 0:05:29]} 53. Kf3 {[%clk 0:00:08]}  Nb4 {[%clk 0:05:31]} 54. a3 {[%clk 0:00:08]}  Nd5 {[%clk 0:05:31]} 55. Rc1 {[%clk 0:00:06]}  Nc3 {[%clk 0:05:32]} 56. Bf5 {[%clk 0:00:05]}  Kf6 {[%clk 0:05:33]} 57. Bd3 {[%clk 0:00:03]}  Re6 {[%clk 0:05:34]} 58. Kf2 {[%clk 0:00:05]}  Re3 {[%clk 0:05:35]} 59. Rxc3 {[%clk 0:00:06]}  Ke7 {[%clk 0:05:32]} 60. b4 {[%clk 0:00:03]}  a4 {[%clk 0:05:33]} 61. Rc7+ {[%clk 0:00:02]}  Kd6 {[%clk 0:05:33]} 62. Rc8 {[%clk 0:00:03]}  Rxd3 {[%clk 0:05:34]} 63. f5 {[%clk 0:00:04]}  Ke5 {[%clk 0:05:35]} 64. f6 {[%clk 0:00:03]}  Kxf6 {[%clk 0:05:36]} 65. Rc6+ {[%clk 0:00:04]}  Kf5 {[%clk 0:05:36]} 66. Rxb6 {[%clk 0:00:06]}  Rxa3 {[%clk 0:05:37]} 67. Rd6 {[%clk 0:00:03]}  Rd3 {[%clk 0:05:23]} 68. b5 {[%clk 0:00:04]}  a3 {[%clk 0:05:24]} 69. Ra6 {[%clk 0:00:03]}  Rb3 {[%clk 0:05:23]} 70. b6 {[%clk 0:00:04]}  Ke4 {[%clk 0:05:24]} 71. b7 {[%clk 0:00:05]}  Rxb7 {[%clk 0:05:26]} 72. Rxa3 {[%clk 0:00:06]}  Rb2+ {[%clk 0:05:27]} 73. Kf1 {[%clk 0:00:05]}  d3 {[%clk 0:05:27]} 74. Ra8 {[%clk 0:00:04]}  Rb1+ {[%clk 0:05:27]} 75. Kf2 {[%clk 0:00:04]}  d2 {[%clk 0:05:29]} 76. Re8+ {[%clk 0:00:03]}  Kf5 {[%clk 0:05:30]} 0-1


[Site "Internet"]

[Event "Chessable Masters - Torneo preliminare"]
[White "Yu, Yangyi"]
[Black "Vallejo Pons, Francisco"]
[WhiteFideId "8603820"]
[BlackFideId "2205530"]
[WhiteElo "2734"]
[BlackElo "2662"]
[Result "1-0"]
[Round "4"]
[TimeControl "600+2"]
[Date "2023.03.13"]
[WhiteClock "0:04:39"]
[BlackClock "0:02:30"]

1. Nf3 {[%clk 0:10:01]}  e6 {[%clk 0:09:59]} 2. g3 {[%clk 0:09:54]}  b5 {[%clk 0:09:59]} 3. d3 {[%clk 0:09:51]}  Bb7 {[%clk 0:09:53]} 4. e4 {[%clk 0:09:52]}  d6 {[%clk 0:09:54]} 5. c3 {[%clk 0:09:51]}  Nd7 {[%clk 0:09:26]} 6. a4 {[%clk 0:09:47]}  a6 {[%clk 0:08:37]} 7. Na3 {[%clk 0:09:47]}  b4 {[%clk 0:07:17]} 8. Nc4 {[%clk 0:09:10]}  a5 {[%clk 0:06:36]} 9. Bg2 {[%clk 0:09:09]}  Ngf6 {[%clk 0:06:33]} 10. O-O {[%clk 0:08:58]}  Be7 {[%clk 0:06:33]} 11. Nd4 {[%clk 0:08:36]}  O-O {[%clk 0:06:09]} 12. Nb3 {[%clk 0:06:21]}  c5 {[%clk 0:04:56]} 13. e5 {[%clk 0:06:20]}  Bxg2 {[%clk 0:04:55]} 14. exf6 {[%clk 0:06:21]}  Bxf1 {[%clk 0:04:57]} 15. fxe7 {[%clk 0:06:22]}  Qxe7 {[%clk 0:04:59]} 16. Qxf1 {[%clk 0:06:23]}  d5 {[%clk 0:03:51]} 17. Ncxa5 {[%clk 0:06:10]}  bxc3 {[%clk 0:03:51]} 18. bxc3 {[%clk 0:06:06]}  Qd8 {[%clk 0:03:47]} 19. c4 {[%clk 0:05:05]}  Rxa5 {[%clk 0:03:42]} 20. Nxa5 {[%clk 0:05:05]}  Qxa5 {[%clk 0:03:44]} 21. cxd5 {[%clk 0:05:01]}  exd5 {[%clk 0:03:42]} 22. Bf4 {[%clk 0:05:01]}  h6 {[%clk 0:03:00]} 23. Qh3 {[%clk 0:04:40]}  Qc3 {[%clk 0:02:30]} 24. Rc1 {[%clk 0:04:39]} 1-0


[Site "Internet"]

[Event "Chessable Masters - Torneo preliminare"]
[White "Fressinet, Laurent"]
[Black "Neiksans, Arturs"]
[WhiteFideId "608742"]
[BlackFideId "11601388"]
[WhiteElo "2689"]
[BlackElo "2553"]
[Result "1-0"]
[Round "4"]
[TimeControl "600+2"]
[Date "2023.03.13"]
[WhiteClock "0:00:31"]
[BlackClock "0:00:33"]

1. d4 {[%clk 0:10:01]}  Nf6 {[%clk 0:09:41]} 2. Nf3 {[%clk 0:10:00]}  e6 {[%clk 0:09:41]} 3. Bg5 {[%clk 0:09:59]}  h6 {[%clk 0:09:38]} 4. Bh4 {[%clk 0:09:59]}  b6 {[%clk 0:09:31]} 5. Nbd2 {[%clk 0:09:50]}  Bb7 {[%clk 0:09:32]} 6. e3 {[%clk 0:09:42]}  d6 {[%clk 0:09:15]} 7. a4 {[%clk 0:09:32]}  a6 {[%clk 0:09:09]} 8. a5 {[%clk 0:09:25]}  b5 {[%clk 0:09:09]} 9. c4 {[%clk 0:09:25]}  bxc4 {[%clk 0:08:25]} 10. Bxc4 {[%clk 0:09:23]}  g5 {[%clk 0:08:11]} 11. Bg3 {[%clk 0:09:20]}  g4 {[%clk 0:07:49]} 12. Nh4 {[%clk 0:09:07]}  Be7 {[%clk 0:07:48]} 13. O-O {[%clk 0:08:16]}  h5 {[%clk 0:07:42]} 14. Qb3 {[%clk 0:07:45]}  Bc6 {[%clk 0:06:38]} 15. Rac1 {[%clk 0:06:38]}  Nfd7 {[%clk 0:05:32]} 16. Nf5 {[%clk 0:05:40]}  exf5 {[%clk 0:05:15]} 17. Bxf7+ {[%clk 0:05:39]}  Kf8 {[%clk 0:05:16]} 18. Bg6 {[%clk 0:04:08]}  Kg7 {[%clk 0:04:33]} 19. Qf7+ {[%clk 0:03:52]}  Kh6 {[%clk 0:04:34]} 20. Bxf5 {[%clk 0:03:50]}  Qe8 {[%clk 0:04:10]} 21. Qxe8 {[%clk 0:02:55]}  Rxe8 {[%clk 0:04:10]} 22. Rxc6 {[%clk 0:02:56]}  Nxc6 {[%clk 0:03:20]} 23. Bxd7 {[%clk 0:02:55]}  Nb4 {[%clk 0:03:15]} 24. Bxe8 {[%clk 0:02:47]}  Rxe8 {[%clk 0:03:16]} 25. Rc1 {[%clk 0:02:21]}  c5 {[%clk 0:03:00]} 26. dxc5 {[%clk 0:02:00]}  dxc5 {[%clk 0:03:01]} 27. Nc4 {[%clk 0:01:59]}  Rd8 {[%clk 0:02:46]} 28. Kf1 {[%clk 0:01:57]}  Rd3 {[%clk 0:02:42]} 29. Ke2 {[%clk 0:01:49]}  Bf6 {[%clk 0:02:41]} 30. Be5 {[%clk 0:01:29]}  Bxe5 {[%clk 0:01:25]} 31. Nxe5 {[%clk 0:01:31]}  Rd5 {[%clk 0:01:26]} 32. Nc4 {[%clk 0:01:28]}  Rd3 {[%clk 0:01:28]} 33. Rc3 {[%clk 0:01:12]}  Rd8 {[%clk 0:01:25]} 34. Nb6 {[%clk 0:01:01]}  h4 {[%clk 0:00:54]} 35. Rxc5 {[%clk 0:00:50]}  Nd3 {[%clk 0:00:42]} 36. Rc2 {[%clk 0:00:43]}  Ne5 {[%clk 0:00:32]} 37. Nc4 {[%clk 0:00:33]}  Nc6 {[%clk 0:00:33]} 38. Rd2 {[%clk 0:00:33]}  Rc8 {[%clk 0:00:33]} 39. Rd6+ {[%clk 0:00:31]}  Kh5 {[%clk 0:00:34]} 40. Rd5+ {[%clk 0:00:30]}  Kh6 {[%clk 0:00:33]} 41. Rc5 {[%clk 0:00:31]} 1-0


[Site "Internet"]

[Event "Chessable Masters - Torneo preliminare"]
[White "Frolyanov, Dmitry"]
[Black "Esipenko, Andrey"]
[WhiteFideId "4151976"]
[BlackFideId "24175439"]
[WhiteElo "2451"]
[BlackElo "2682"]
[Result "1/2-1/2"]
[Round "4"]
[TimeControl "600+2"]
[Date "2023.03.13"]
[WhiteClock "0:00:18"]
[BlackClock "0:00:04"]

1. d4 {[%clk 0:10:00]}  Nf6 {[%clk 0:09:59]} 2. c4 {[%clk 0:10:00]}  e6 {[%clk 0:09:59]} 3. Nf3 {[%clk 0:10:00]}  d5 {[%clk 0:09:54]} 4. g3 {[%clk 0:10:00]}  Bb4+ {[%clk 0:09:53]} 5. Bd2 {[%clk 0:10:00]}  Be7 {[%clk 0:09:54]} 6. Bg2 {[%clk 0:10:01]}  O-O {[%clk 0:09:53]} 7. O-O {[%clk 0:10:02]}  c6 {[%clk 0:09:54]} 8. Qc2 {[%clk 0:10:02]}  Nbd7 {[%clk 0:09:46]} 9. Rd1 {[%clk 0:10:01]}  b6 {[%clk 0:09:42]} 10. Bf4 {[%clk 0:10:00]}  Ba6 {[%clk 0:09:42]} 11. Nbd2 {[%clk 0:09:55]}  Nh5 {[%clk 0:09:30]} 12. Be3 {[%clk 0:09:53]}  Nhf6 {[%clk 0:09:18]} 13. Rac1 {[%clk 0:09:49]}  Rc8 {[%clk 0:09:18]} 14. Bg5 {[%clk 0:09:41]}  Bb7 {[%clk 0:09:02]} 15. e4 {[%clk 0:09:23]}  h6 {[%clk 0:08:33]} 16. Bxf6 {[%clk 0:09:18]}  Nxf6 {[%clk 0:08:35]} 17. Ne5 {[%clk 0:08:57]}  dxc4 {[%clk 0:08:23]} 18. Ndxc4 {[%clk 0:08:52]}  b5 {[%clk 0:08:12]} 19. Ne3 {[%clk 0:08:50]}  Qb6 {[%clk 0:08:08]} 20. Qe2 {[%clk 0:07:35]}  Rfd8 {[%clk 0:08:00]} 21. Nxf7 {[%clk 0:07:17]}  Kxf7 {[%clk 0:07:34]} 22. e5 {[%clk 0:07:17]}  Nh7 {[%clk 0:07:17]} 23. Be4 {[%clk 0:05:08]}  Kg8 {[%clk 0:07:01]} 24. Qg4 {[%clk 0:04:32]}  Nf8 {[%clk 0:06:58]} 25. h4 {[%clk 0:03:48]}  Rd7 {[%clk 0:06:12]} 26. Rd3 {[%clk 0:03:46]}  Rcd8 {[%clk 0:03:32]} 27. Rcd1 {[%clk 0:03:45]}  Kh8 {[%clk 0:03:33]} 28. Bg2 {[%clk 0:02:50]}  Qc7 {[%clk 0:03:22]} 29. Qf4 {[%clk 0:02:19]}  c5 {[%clk 0:02:29]} 30. d5 {[%clk 0:02:20]}  exd5 {[%clk 0:02:30]} 31. Nxd5 {[%clk 0:02:17]}  Bxd5 {[%clk 0:02:31]} 32. Rxd5 {[%clk 0:02:08]}  Ng6 {[%clk 0:02:13]} 33. Qf5 {[%clk 0:01:44]}  Rxd5 {[%clk 0:00:22]} 34. Rxd5 {[%clk 0:01:46]}  Nf8 {[%clk 0:00:13]} 35. Qf7 {[%clk 0:01:39]}  Bd6 {[%clk 0:00:03]} 36. Qf5 {[%clk 0:01:29]}  Be7 {[%clk 0:00:04]} 37. Qf7 {[%clk 0:01:30]}  a6 {[%clk 0:00:06]} 38. Rxd8 {[%clk 0:01:26]}  Qxd8 {[%clk 0:00:06]} 39. Bd5 {[%clk 0:01:22]}  Nd7 {[%clk 0:00:07]} 40. Qf5 {[%clk 0:01:03]}  c4 {[%clk 0:00:08]} 41. a4 {[%clk 0:00:54]}  c3 {[%clk 0:00:03]} 42. axb5 {[%clk 0:00:51]}  cxb2 {[%clk 0:00:03]} 43. bxa6 {[%clk 0:00:53]}  Nc5 {[%clk 0:00:03]} 44. Ba2 {[%clk 0:00:37]}  Nxa6 {[%clk 0:00:02]} 45. Bb1 {[%clk 0:00:34]}  Qg8 {[%clk 0:00:04]} 46. Qc2 {[%clk 0:00:30]}  Bc5 {[%clk 0:00:02]} 47. Qxb2 {[%clk 0:00:30]}  Nb4 {[%clk 0:00:03]} 48. Qc3 {[%clk 0:00:29]}  Qf8 {[%clk 0:00:04]} 49. Qe1 {[%clk 0:00:24]}  Nc6 {[%clk 0:00:03]} 50. Kg2 {[%clk 0:00:20]}  Bd4 {[%clk 0:00:05]} 51. f4 {[%clk 0:00:21]}  Qb8 {[%clk 0:00:02]} 52. Qe4 {[%clk 0:00:22]}  Kg8 {[%clk 0:00:02]} 53. Ba2+ {[%clk 0:00:21]}  Kh8 {[%clk 0:00:03]} 54. Bb1 {[%clk 0:00:20]}  Kg8 {[%clk 0:00:03]} 55. Ba2+ {[%clk 0:00:17]}  Kh8 {[%clk 0:00:04]} 56. Bb1 {[%clk 0:00:18]} 1/2-1/2


[Site "Internet"]

[Event "Chessable Masters - Torneo preliminare"]
[White "Tari, Aryan"]
[Black "Santos Ruiz, Miguel"]
[WhiteFideId "1510045"]
[BlackFideId "22291482"]
[WhiteElo "2539"]
[BlackElo "2491"]
[Result "1-0"]
[Round "4"]
[TimeControl "600+2"]
[Date "2023.03.13"]
[WhiteClock "0:00:35"]
[BlackClock "0:00:05"]

1. e4 {[%clk 0:10:01]}  e5 {[%clk 0:10:00]} 2. Nf3 {[%clk 0:10:02]}  Nc6 {[%clk 0:10:02]} 3. d4 {[%clk 0:10:03]}  exd4 {[%clk 0:10:02]} 4. Nxd4 {[%clk 0:10:05]}  Nf6 {[%clk 0:10:02]} 5. Nxc6 {[%clk 0:10:06]}  bxc6 {[%clk 0:10:03]} 6. Nd2 {[%clk 0:10:07]}  Bc5 {[%clk 0:10:00]} 7. Nb3 {[%clk 0:10:03]}  Bb6 {[%clk 0:09:56]} 8. Bd3 {[%clk 0:09:47]}  d5 {[%clk 0:09:52]} 9. exd5 {[%clk 0:09:22]}  O-O {[%clk 0:09:40]} 10. O-O {[%clk 0:09:21]}  cxd5 {[%clk 0:09:33]} 11. h3 {[%clk 0:09:22]}  Re8 {[%clk 0:09:26]} 12. Bg5 {[%clk 0:09:07]}  h6 {[%clk 0:09:25]} 13. Bh4 {[%clk 0:09:07]}  Qd6 {[%clk 0:09:25]} 14. Qf3 {[%clk 0:07:46]}  Ne4 {[%clk 0:09:22]} 15. Rad1 {[%clk 0:07:42]}  g5 {[%clk 0:08:28]} 16. Bxe4 {[%clk 0:06:41]}  dxe4 {[%clk 0:08:28]} 17. Qc3 {[%clk 0:06:43]}  Qe7 {[%clk 0:07:59]} 18. Bg3 {[%clk 0:06:32]}  f5 {[%clk 0:06:12]} 19. Qc6 {[%clk 0:06:31]}  Be6 {[%clk 0:05:48]} 20. Be5 {[%clk 0:06:26]}  Qf7 {[%clk 0:05:29]} 21. Nc5 {[%clk 0:05:42]}  Rac8 {[%clk 0:04:16]} 22. Bc3 {[%clk 0:05:06]}  Kh7 {[%clk 0:03:32]} 23. Rd4 {[%clk 0:04:06]}  Re7 {[%clk 0:03:14]} 24. Rfd1 {[%clk 0:03:54]}  Rce8 {[%clk 0:03:02]} 25. Rd8 {[%clk 0:03:45]}  Rxd8 {[%clk 0:02:05]} 26. Rxd8 {[%clk 0:03:45]}  Bxc5 {[%clk 0:02:06]} 27. Qxc5 {[%clk 0:03:38]}  Rd7 {[%clk 0:02:07]} 28. Rh8+ {[%clk 0:03:10]}  Kg6 {[%clk 0:02:08]} 29. h4 {[%clk 0:01:49]}  f4 {[%clk 0:01:38]} 30. Rf8 {[%clk 0:01:15]}  Qe7 {[%clk 0:00:49]} 31. Rf6+ {[%clk 0:01:14]}  Kh5 {[%clk 0:00:49]} 32. Qc6 {[%clk 0:01:04]}  Rd1+ {[%clk 0:00:11]} 33. Kh2 {[%clk 0:01:05]}  Bd7 {[%clk 0:00:02]} 34. Rxh6+ {[%clk 0:01:00]}  Kg4 {[%clk 0:00:04]} 35. Qg6 {[%clk 0:00:59]}  f3 {[%clk 0:00:05]} 36. Qh5+ {[%clk 0:00:35]}  Kf5 {[%clk 0:00:05]} 37. Rf6+ {[%clk 0:00:35]} 1-0


[Site "Internet"]

[Event "Chessable Masters - Torneo preliminare"]
[White "Flores, Diego"]
[Black "Vokhidov, Shamsiddin"]
[WhiteFideId "108049"]
[BlackFideId "14204223"]
[WhiteElo "2598"]
[BlackElo "2514"]
[Result "0-1"]
[Round "4"]
[TimeControl "600+2"]
[Date "2023.03.13"]
[WhiteClock "0:01:47"]
[BlackClock "0:05:34"]

1. c4 {[%clk 0:10:01]}  e5 {[%clk 0:10:00]} 2. Nc3 {[%clk 0:10:01]}  Nf6 {[%clk 0:10:01]} 3. Nf3 {[%clk 0:10:02]}  Nc6 {[%clk 0:10:03]} 4. e3 {[%clk 0:10:03]}  Bb4 {[%clk 0:10:03]} 5. Nd5 {[%clk 0:10:03]}  Bd6 {[%clk 0:09:57]} 6. d4 {[%clk 0:08:57]}  exd4 {[%clk 0:09:21]} 7. exd4 {[%clk 0:08:58]}  O-O {[%clk 0:09:08]} 8. Bg5 {[%clk 0:07:09]}  Qe8+ {[%clk 0:09:08]} 9. Be2 {[%clk 0:06:59]}  Nxd5 {[%clk 0:09:05]} 10. cxd5 {[%clk 0:07:01]}  Ne7 {[%clk 0:08:15]} 11. Bxe7 {[%clk 0:06:17]}  Qxe7 {[%clk 0:08:13]} 12. O-O {[%clk 0:06:18]}  b6 {[%clk 0:08:07]} 13. Re1 {[%clk 0:06:03]}  Bb4 {[%clk 0:08:04]} 14. Rf1 {[%clk 0:05:43]}  Bb7 {[%clk 0:08:00]} 15. Bc4 {[%clk 0:05:38]}  b5 {[%clk 0:07:50]} 16. Bb3 {[%clk 0:05:26]}  Qd6 {[%clk 0:07:42]} 17. Qd3 {[%clk 0:04:11]}  Bxd5 {[%clk 0:07:31]} 18. Ng5 {[%clk 0:03:59]}  g6 {[%clk 0:07:31]} 19. a3 {[%clk 0:03:02]}  Ba5 {[%clk 0:06:26]} 20. Qxb5 {[%clk 0:02:48]}  Bxb3 {[%clk 0:06:26]} 21. Qxb3 {[%clk 0:02:31]}  Qxd4 {[%clk 0:06:14]} 22. Qh3 {[%clk 0:02:25]}  h5 {[%clk 0:06:09]} 23. Rad1 {[%clk 0:02:24]}  Qf4 {[%clk 0:05:57]} 24. Rd5 {[%clk 0:02:15]}  Bb6 {[%clk 0:05:56]} 25. Qxd7 {[%clk 0:02:13]}  Rae8 {[%clk 0:05:38]} 26. Nh3 {[%clk 0:01:50]}  Qf6 {[%clk 0:05:35]} 27. Rd2 {[%clk 0:01:47]}  Rd8 {[%clk 0:05:34]} 0-1


[Site "Internet"]

[Event "Chessable Masters - Torneo preliminare"]
[White "Bindrich, Falko"]
[Black "Pantsulaia, Levan"]
[WhiteFideId "4676670"]
[BlackFideId "13602071"]
[WhiteElo "2548"]
[BlackElo "2533"]
[Result "0-1"]
[Round "4"]
[TimeControl "600+2"]
[Date "2023.03.13"]
[WhiteClock "0:00:44"]
[BlackClock "0:00:20"]

1. d4 {[%clk 0:10:01]}  c5 {[%clk 0:09:53]} 2. e3 {[%clk 0:09:59]}  Nf6 {[%clk 0:09:48]} 3. Nf3 {[%clk 0:10:00]}  b6 {[%clk 0:09:45]} 4. Bd3 {[%clk 0:09:52]}  Bb7 {[%clk 0:09:43]} 5. O-O {[%clk 0:09:53]}  e6 {[%clk 0:09:20]} 6. c4 {[%clk 0:09:44]}  cxd4 {[%clk 0:09:13]} 7. exd4 {[%clk 0:09:46]}  d5 {[%clk 0:09:15]} 8. Nc3 {[%clk 0:09:48]}  Be7 {[%clk 0:09:11]} 9. Bg5 {[%clk 0:09:48]}  Nbd7 {[%clk 0:08:44]} 10. Re1 {[%clk 0:09:41]}  O-O {[%clk 0:08:41]} 11. Qe2 {[%clk 0:09:03]}  dxc4 {[%clk 0:07:58]} 12. Bxc4 {[%clk 0:09:03]}  Rc8 {[%clk 0:07:59]} 13. Ba6 {[%clk 0:08:22]}  Qc7 {[%clk 0:07:17]} 14. d5 {[%clk 0:07:21]}  Bxa6 {[%clk 0:06:08]} 15. Qxa6 {[%clk 0:07:23]}  Nc5 {[%clk 0:06:09]} 16. Qe2 {[%clk 0:07:21]}  Rfe8 {[%clk 0:06:10]} 17. Rad1 {[%clk 0:05:04]}  Qb7 {[%clk 0:04:37]} 18. b4 {[%clk 0:04:27]}  Na6 {[%clk 0:04:18]} 19. dxe6 {[%clk 0:03:36]}  Bxb4 {[%clk 0:03:20]} 20. Bxf6 {[%clk 0:02:40]}  Rxe6 {[%clk 0:03:18]} 21. Qd3 {[%clk 0:01:53]}  Rxf6 {[%clk 0:02:20]} 22. Nd5 {[%clk 0:01:12]}  Bxe1 {[%clk 0:01:06]} 23. Rxe1 {[%clk 0:01:01]}  Re6 {[%clk 0:00:54]} 24. Rd1 {[%clk 0:00:47]}  Nc5 {[%clk 0:00:53]} 25. Qf5 {[%clk 0:00:48]}  h6 {[%clk 0:00:51]} 26. Ne5 {[%clk 0:00:48]}  Rce8 {[%clk 0:00:45]} 27. f4 {[%clk 0:00:49]}  Rd6 {[%clk 0:00:33]} 28. Ne7+ {[%clk 0:00:42]}  Qxe7 {[%clk 0:00:24]} 29. Rxd6 {[%clk 0:00:44]}  f6 {[%clk 0:00:20]} 0-1


[Site "Internet"]